Workbook

Sheet Superpesis
B1: Sirpa Tikka | E1: 23.6.1967
B2: SUPERPESIS | E2: Runkosarja | I2: Kärkilyönnit (KL), pesänvälit | P2: Ylempi loppusarja | U2: Alempi loppusarja | Z2: Arvo-ottelut ja mitalit | AF2: Runkosarjan jälkeen
B3: Vuosi | C3: Sija | D3: Seura | E3: OTT | F3: KUN | G3: LÖI | H3: TOI | I3: KL | J3: 0 > 1 | K3: 1 > 2 | L3: 2 > 3 | M3: 3 > k | N3: KL-% | P3: OTT | Q3: KUN | R3: LÖI | S3: TOI | T3: KL | U3: OTT | V3: KUN | W3: LÖI | X3: TOI | Y3: KL | Z3: IL | AA3: LL | AB3: Halli | AC3: K | AD3: H | AE3: P
B4: 1988 | C4: 3. | D4: ViU | E4: 18 | F4: 1 | G4: 17 | H4: 13 | I4: 67 | J4: 14 | K4: 14 | L4: 21 | M4: =PRODUCT(F4+G4) -> 18 | N4: ---- | AE4: 1
B5: 1989 | C5: 2. | D5: ViU | E5: 18 | F5: 1 | G5: 20 | H5: 16 | I5: 67 | J5: 14 | K5: 13 | L5: 19 | M5: =PRODUCT(F5+G5) -> 21 | N5: ---- | AB5: 1 | AD5: 1 | AF5: play off
B6: 1990 | C6: 1. | D6: ViU | E6: 22 | F6: 2 | G6: 24 | H6: 27 | I6: 104 | J6: 18 | K6: 21 | L6: 39 | M6: 26 | N6: 65.4 % | O6: =PRODUCT(I6/N6) -> 159.0214067 | AB6: 1 | AC6: 1 | AF6: play off
B7: 1991 | C7: 2. | D7: ViU | E7: 22 | F7: 2 | G7: 31 | H7: 19 | I7: 89 | J7: 14 | K7: 14 | L7: 28 | M7: =SUM(F7+G7) -> 33 | N7: 54.3 % | O7: 163.9042357 | AB7: 1 | AD7: 1 | AF7: play off
B8: 1992 | C8: 3. | D8: ViU | E8: 21 | F8: 6 | G8: 35 | H8: 23 | I8: 112 | J8: 21 | K8: 14 | L8: 36 | M8: =SUM(F8+G8) -> 41 | N8: 62.9 % | O8: 178.0604134 | Z8: 1 | AB8: 1 | AE8: 1 | AF8: play off
B9: 1993 | C9: 7. | D9: Roihu | E9: 24 | F9: 1 | G9: 23 | H9: 21 | I9: 97 | J9: 20 | K9: 21 | L9: 32 | M9: =SUM(F9+G9) -> 24 | N9: 56.1 % | O9: 172.9055258 | AF9: play off
B10: 1994 | C10: 6. | D10: ViU | E10: 16 | F10: 1 | G10: 24 | H10: 5 | I10: 51 | J10: 4 | K10: 9 | L10: 13 | M10: 25 | N10: 49.5 % | O10: 103.030303 | AF10: puolivälierät
B11: 1995 | C11: 6. | D11: ViU | E11: 14 | F11: 2 | G11: 9 | H11: 8 | I11: 54 | J11: 12 | K11: 11 | L11: 20 | M11: 11 | N11: 47.8 % | O11: 112.9707113 | AF11: play off
B12: Yhteensä | E12: =SUM(E4:E11) -> 155 | F12: 16 | G12: 183 | H12: 132 | I12: 641 | J12: 117 | K12: 117 | L12: 208 | M12: 199 | N12: =PRODUCT(507/O12) -> 57.0 % | O12: =SUM(O6:O11) -> 889.892596 | P12: =SUM(P4:P11) -> 0 | Q12: 0 | R12: 0 | S12: 0 | T12: 0 | U12: 0 | V12: 0 | W12: 0 | X12: 0 | Y12: 0 | Z12: 1 | AA12: 0 | AB12: 4 | AC12: 1 | AD12: 2 | AE12: 2
B13: Pesispörssi | D13: =SUM(F12:H12)+((I12-F12-G12)/3)+(E12/3)+(Z12*25)+(AA12*25)+(AB12*15)+(AC12*25)+(AD12*20)+(AE12*15) -> 710.0
B15: URA SUPERISSA | E15: OTT | F15: KUN | G15: LÖI | H15: TOI | I15: KL | K15: ka/L | L15: ka/T | M15: ka/KL | N15: K - % | P15: ENSIMMÄISET
B16: Runkosarja | E16: =PRODUCT(E12) -> 155 | F16: =PRODUCT(F12) -> 16 | G16: =PRODUCT(G12) -> 183 | H16: =PRODUCT(H12) -> 132 | I16: =PRODUCT(I12) -> 641 | K16: =PRODUCT((F16+G16)/E16) -> 1.28 | L16: =PRODUCT(H16/E16) -> 0.85 | M16: =PRODUCT(I16/E16) -> 4.14 | N16: =PRODUCT(N12) -> 57.0 % | O16: =PRODUCT(O12) -> 889.892596 | P16: Ottelu | S16: 08.05. 1988 Tahko - ViU 5-10 | AD16: 1. ottelu | AF16: 20 v 10 kk 15 pv
B17: Ylempi loppusarja | O17: =PRODUCT(I17/N17) ->  | P17: Lyöty juoksu
B18: Alempi loppusarja | P18: Tuotu juoksu
B19: KAIKKI | E19: =SUM(E16:E18) -> 155 | F19: =SUM(F16:F18) -> 16 | G19: =SUM(G16:G18) -> 183 | H19: =SUM(H16:H18) -> 132 | I19: =SUM(I16:I18) -> 641 | K19: =PRODUCT((F19+G19)/E19) -> 1.28 | L19: =PRODUCT(H19/E19) -> 0.85 | M19: =PRODUCT(I19/E19) -> 4.14 | O19: =SUM(O16:O18) ->  | P19: Kunnari
B21: Seurat | D21: ViU = Viinijärven Urheilijat (1914)
D22: Roihu = Roihu, Helsinki (1957)

Sheet Arvo-ottelut
B1: ITÄ - LÄNSI - KORTTI
B2: Sirpa Tikka | C2: 23.6.1967
B3: NAISET | C3: Itä - Länsi, tulos | D3: Joukkue | E3: Seura | G3: V | H3: T | I3: H | J3: Up. | K3: Lj. | L3: Palk. | M3: O | N3: K | O3: L | P3: T | Q3: KL | R3: 1 | S3: 2 | T3: 3 | U3: k | V3: KL-% | W3: Pelinjohtaja | X3: Yleisöä
B4: 27.06. 1992 Vihti | C4: 9-10 | D4: Itä | E4: ViU | I4: 1 | J4: s | K4: 9 | M4: 1 | Q4: 2/5 | R4: 1/1 | T4: 0/2 | U4: 1/2 | V4: 40.0 % | W4: Jari Haapanen | X4: 2430
B5: Ikä ensimmäisessä ottelussa | C5: 25 v 0 kk 4 pv
